Cogmind - Beta 16.1 @@@ ROGUE MODE // 2026.04.10 @ 01:00:48 Player: Ammie Result: Destroyed by Y-45 Defender with Heavy Assault Rifle Performance ------------- Evolutions (1) 500 Regions Visited (3) 600 Robots Destroyed (66) 330 Value Destroyed (1704) 1704 Prototype IDs (5) 100 Alien Tech Used (0) 0 Bonus (14) 14 TOTAL SCORE: 3248 Bonus ------- High Alert Combat Kills 14 Cogmind --------- Core Integrity 0/400 Matter 280/300 Energy 37/100 System Corruption 0% Temperature Cool (0) Movement Rolling (80) Location -9/Materials Parts ------- > --- POWER (1) -------- (None) > --- PROPULSION (2) --- Armored Wheel Armored Wheel > --- UTILITY (4) ------ Cooling System Small Storage Unit Improved Terrain Scanner > --- WEAPON (2) ------- EM Pulse Cannon Makeshift Hammer > --- INVENTORY (8) ---- Armored Wheel Spread Laser Spread Laser EM Pulse Cannon Improved Light Cannon Peak State ------------ > --- POWER ------------ Light Deuterium Engine > --- PROPULSION ------- Armored Wheel Armored Wheel > --- UTILITY ---------- Scrap Suit Small Storage Unit Hardened Medium Armor Plating > --- WEAPON ----------- Makeshift Hammer Axe > --- INVENTORY -------- Light Deuterium Engine Armored Wheel Cooling System Improved Terrain Scanner Hardened Medium Armor Plating EM Pulse Cannon EM Pulse Cannon Improved Light Cannon [Rating: 28] Favorites ----------- Power Ion Engine Engine Ion Engine Propulsion Aluminum Leg Leg Aluminum Leg Wheel Armored Wheel Utility Small Storage Unit Device Scrap Suit Storage Small Storage Unit Protection Hardened Medium Armor Plating Weapon Makeshift Hammer Energy Gun Medium Laser Energy Cannon EM Pulse Cannon Ballistic Cannon Improved Light Cannon Launcher Grenade Launcher Impact Weapon Makeshift Hammer Slashing Weapon Axe Build | -11 -10 -10 -9 ------- Run | Yrd Mat Min Mat Slots Evolved 2 | . . . 2 Power . | . . . . Propulsion . | . . . . Utility 2 | . . . 2 Weapon . | . . . . Parts Attached 34 | 6 8 2 18 Power 7 | 1 2 . 4 Engine 7 | 1 2 . 4 Core . | . . . . Reactor . | . . . . Propulsion 10 | 2 3 . 5 Treads . | . . . . Leg 5 | 2 3 . . Wheel 5 | . . . 5 Hover . | . . . . Flight . | . . . . Utility 9 | 1 1 1 6 Device 4 | . 1 . 3 Storage 1 | 1 . . . Processor . | . . . . Hackware . | . . . . Protection 4 | . . 1 3 Artifact . | . . . . Weapon 8 | 2 2 1 3 Energy Gun 3 | 2 1 . . Energy Cannon 1 | . . . 1 Ballistic Gun . | . . . . Ballistic Cannon 1 | . . . 1 Launcher 1 | . 1 . . Special Weapon . | . . . . Impact Weapon 1 | . . 1 . Slashing Weapon 1 | . . . 1 Piercing Weapon . | . . . . Special Melee Weapon . | . . . . Unidentified Prototypes . | . . . . Parts Lost 11 | . 3 1 7 Power 4 | . 1 . 3 Propulsion . | . . . . Utility 4 | . . 1 3 Weapon 3 | . 2 . 1 Highest Loss Streak 3 | . 2 1 3 To Critical Strikes 1 | . . . 1 Average Backups 6 | 1 6 6 7 Power 1 | . 1 1 . Propulsion 1 | . 2 2 1 Utility 2 | . 1 2 2 Weapon 1 | . 1 . 2 Tool/Special . | . . . . Unused Backups 6 | . 1 . 5 Power 1 | . . . 1 Propulsion . | . . . . Utility 2 | . 1 . 1 Weapon 3 | . . . 3 Tool/Special . | . . . . Average Slot Usage (%) 93 | . 98 99 85 Engine 12 | . 13 14 10 Leg 15 | . 28 28 . Wheel 9 | . . . 21 Device 9 | . 13 5 10 Storage 12 | . 14 14 11 Protection 7 | . . 8 10 Energy Gun 10 | . 19 18 . Launcher 1 | . 8 . . Impact Weapon 7 | . . 9 10 Slashing Weapon 3 | . . . 8 Peak Build Rating 28 | 6 8 12 28 Average Rating 16 | 4 7 10 24 On Entrance 6 | . 6 8 12 Avg Prop Armor Cover (%) . | . . . . Naked Turns . | . . . . Heaviest Build 29 | 12 16 22 29 Greatest Support 24 | 20 20 20 24 Greatest Overweight (x) 2 | 1 . 1 2 Average Overweight (x) . | . . . . Largest Inventory Capacity 8 | 8 8 8 8 Average Capacity 7 | 7 8 8 8 Most Carried 8 | 2 8 8 8 Average Carried 7 | 1 6 7 7 Final Capacity 8 | 8 8 8 8 Final Carried 8 | 2 7 8 5 Scrap Suit Usage (%) 40 | . . . 93 Parts Cannibalized 4 | . . . 4 Class Distribution -------------------- 100% | Mutant Dominant Class ---------------- Mutant | -10/Materials Mutant | -10/Mines Mutant | -9/Materials Resources | -11 -10 -10 -9 ----------- Run | Yrd Mat Min Mat Matter Collected 782 | 238 317 43 184 Remotely . | . . . . Salvage Created 1948 | . 366 260 1322 Parts 78 | . 29 2 47 Haulers Intercepted 6 | . 2 . 4 Recyclers Shooed 1 | . 1 . . Parts Field Recycled . | . . . . Retrieved Matter . | . . . . Parts Self-Destructed . | . . . . Prevented . | . . . . Parts Restored . | . . . . Kills | -11 -10 -10 -9 ------- Run | Yrd Mat Min Mat Combat Hostiles Destroyed 47 | . 11 7 29 Melee 17 | . . 1 16 Guns 3 | . 2 1 . Cannons 1 | . . . 1 AOE 10 | . 9 . 1 Classes Destroyed 10 | . 6 2 2 Worker 2 | . 1 . 1 Builder 4 | . 3 . 1 Tunneler 3 | . . 1 2 Hauler 6 | . 2 . 4 Watcher 5 | . 3 . 2 Swarmer 10 | . 3 . 7 Grunt 28 | . 8 6 14 Duelist 1 | . . . 1 Sentry 7 | . . . 7 Assembled 1 | . . 1 . Best Kill Streak 5 | . 4 3 5 Combat Bots Only 5 | . 3 2 5 Max Kills in Single Turn 3 | . 3 1 1 Gunslinging . | . . . . Exploded 3 | . 3 . 1 Melee 1 | . . 1 1 Uniques/NPCs Destroyed . | . . . . Combat | -11 -10 -10 -9 -------- Run | Yrd Mat Min Mat Hostile Shots Fired 335 | . 50 26 259 Missed 88 | . 10 4 74 Hits 247 | . 40 22 185 Melee 7 | . . 2 5 Projectile 240 | . 40 20 180 Critical Strikes 11 | . 1 . 10 Damage Taken 3063 | . 521 279 2263 Core 573 | . 84 72 417 Absorbed by Shields . | . . . . Regen/Repaired (Parts) 130 | . . . 130 Core Remaining (%) 68 | 100 . 37 . Volleys Fired 82 | . 59 4 19 Largest 2 | . 2 2 1 Hottest 90 | . 90 90 63 Shots Fired 109 | . 82 8 19 Gun 71 | . 60 8 3 Cannon 16 | . . . 16 Launcher 22 | . 22 . . Special . | . . . . Kinetic 2 | . . . 2 Thermal 50 | . 42 5 3 Explosive 22 | . 22 . . Electromagnetic 35 | . 18 3 14 Robot Hit Streak 6 | . 6 3 4 Robot Miss Streak 6 | . 6 2 3 Penetration Max . | . . . . Secondary Targets . | . . . . Shots Hit Robots 137 | . 27 18 92 Core Hits 58 | . 34 3 21 Critical Kills 2 | . . . 2 Critical Parts Destroyed 15 | . . 4 11 Critical Strikes 20 | . 1 5 14 Burn 2 | . 1 1 . Smash 18 | . . 4 14 Melee Attacks 186 | . . 28 158 Impact 164 | . . 28 136 Slashing 22 | . . . 22 Piercing . | . . . . Sneak Attacks 8 | . . 1 7 Combat Hostiles 2 | . . 1 1 Follow-up Attacks 7 | . . . 7 Damage Inflicted 6125 | . 1456 686 3983 Guns 462 | . 391 46 25 Cannons 191 | . . . 191 Explosions 1128 | . 1065 . 63 Melee 4340 | . . 636 3704 Ramming 4 | . . 4 . Kinetic . | . . . . Thermal 399 | . 275 36 88 Explosive 1065 | . 1065 . . Electromagnetic 317 | . 116 10 191 Impact 3927 | . . 636 3291 Slashing 413 | . . . 413 Piercing . | . . . . Highest Corruption 2 | . 2 2 . Average Corruption 1 | . 1 2 . Corruption Purged . | . . . . Corruption Blocked . | . . . . Effects 16 | . 1 15 . Message Errors 7 | . . 7 . Matter Fused 3 | . 1 2 . Heat Flow Errors 1 | . . 1 . Energy Discharges 1 | . . 1 . Parts Fused 1 | . . 1 . Data Loss (minor) 2 | . . 2 . Misfires 1 | . . 1 . Overload Shots . | . . . . Overflow Damage 1241 | . 10 292 939 Projectiles 11 | . . 8 3 Explosions 24 | . 10 . 14 Melee 1206 | . . 284 922 Knockbacks 11 | . . 2 9 Impact 10 | . . 1 9 Kinetic . | . . . . Secondary 1 | . . 1 . Self-Inflicted Damage 71 | . . . 71 Shots 2 | . . . 2 Rammed . | . . . . Targets Rammed 1 | . . 1 . Kicked 1 | . . 1 . Crushed . | . . . . Highest Temperature 271 | . 271 267 124 Average Temperature 73 | . 84 87 37 Received Heat Transfer 1164 | . 282 123 759 Effects 2 | . 2 . . Interference 2 | . 2 . . Siege Activations . | . . . . Martial Activations . | . . . . Shielding Activations . | . . . . Robots Disrupted . | . . . . Combat Hostiles . | . . . . Robots Corrupted 23 | . . 6 17 Combat Hostiles 16 | . . 5 11 Parts Fried 28 | . . 7 21 Impact Corruptions 46 | . . 10 36 Robots Melted . | . . . . Combat Hostiles . | . . . . Parts Melted 2 | . 2 . . Heat Transferred 1247 | . 888 185 174 Parts Sabotaged . | . . . . Parts Stolen . | . . . . Parts Stripped . | . . . . Power Chain Reactions 2 | . . . 2 Alert | -11 -10 -10 -9 ------- Run | Yrd Mat Min Mat Maximum Alert Level 2 | . . . 2 Low Security (%) 85 | 100 100 100 67 Level 1 12 | . . . 27 Level 2 2 | . . . 5 Level 3 . | . . . . Level 4 . | . . . . Level 5 . | . . . . High Security . | . . . . Max Security . | . . . . Peak Influence 518 | . 175 61 518 Initial 25 | . . 25 14 Average 86 | . 92 10 142 Influence Increases 1681 | . 406 213 1062 Destroy 0b10 Robot/C 920 | . 220 120 580 Destroy 0b10 Robot/NC 100 | . 45 5 50 Destroy Leader 272 | . 70 10 192 Successful Hack 32 | . . . 32 Disable Machine 135 | . . 75 60 Destroy Structure 87 | . 71 3 13 Partial Spotted 15 | . . . 15 Lose Combat Pursuer 120 | . . . 120 Influence Decreases 1166 | . 341 241 584 Entered New Map 63 | . . 40 23 Time Decay 993 | . 311 191 491 Lost Part 110 | . 30 10 70 Squads Dispatched 9 | . 3 . 6 Investigation 4 | . 1 . 3 Extermination . | . . . . Reinforcement 5 | . 2 . 3 Assault . | . . . . Garrison . | . . . . Intercept . | . . . . Searches Triggered . | . . . . Construction Impeded . | . . . . Haulers Reinforced . | . . . . Active Scanning Responses . | . . . . Cargo Convoy Interrupts . | . . . . Stealth | -11 -10 -10 -9 --------- Run | Yrd Mat Min Mat Distress Signals 6 | . 2 . 4 Communications Jammed . | . . . . Distress Signals . | . . . . Times Spotted 73 | . 19 7 47 Peak Tracking Total 8 | . 5 2 8 Tactical Retreats 7 | . . 1 6 Traps | -11 -10 -10 -9 ------- Run | Yrd Mat Min Mat Traps Triggered 4 | . 4 . . Indirectly . | . . . . Trap Hack Attempts . | . . . . Triggered . | . . . . Disarmed . | . . . . Reprogrammed . | . . . . Reused . | . . . . Traps Extracted . | . . . . Installed . | . . . . Triggered . | . . . . Machines | -11 -10 -10 -9 ---------- Run | Yrd Mat Min Mat Machines Disabled 9 | . . 5 4 Max in Single Turn 1 | . . 1 1 Machines Repaired . | . . . . Machines Dismantled . | . . . . Machines Sabotaged . | . . . . Overloaded Fab Kills . | . . . . Hacking | -11 -10 -10 -9 --------- Run | Yrd Mat Min Mat Machines Accessed 10 | . 3 . 7 Terminals 7 | . 3 . 4 Fabricators . | . . . . Repair Stations 2 | . . . 2 Recycling Units . | . . . . Scanalyzers 1 | . . . 1 Garrison Access . | . . . . Total Hacks 23 | . 4 . 19 Successful 14 | . 3 . 11 Failed 9 | . 1 . 8 Catastrophic 1 | . . . 1 Database Lockouts . | . . . . Manual . | . . . . Terminals 16 | . 4 . 12 Fabricators . | . . . . Repair Stations 6 | . . . 6 Recycling Units . | . . . . Scanalyzers 1 | . . . 1 Garrison Access . | . . . . Terminal Hacks 8 | . 3 . 5 Prototype ID Bank 2 | . 1 . 1 Locate Traps 2 | . 1 . 1 Hauler Manifests 1 | . . . 1 Zone Layout 3 | . 1 . 2 Fabricator Hacks . | . . . . Repair Station Hacks 5 | . . . 5 Scan Component 3 | . . . 3 Repair 2 | . . . 2 Recycling Unit Hacks . | . . . . Scanalyzer 1 | . . . 1 Retrieve Study 1 | . . . 1 Garrison Access Hacks . | . . . . Unauthorized Hacks . | . . . . Terminals . | . . . . Fabricators . | . . . . Repair Stations . | . . . . Recycling Units . | . . . . Scanalyzers . | . . . . Garrison Access . | . . . . Data Cores Recovered . | . . . . Used . | . . . . Hacking Detections 6 | . . . 6 Full Trace Events 3 | . . . 3 Feedback Events . | . . . . Feedback Blocked . | . . . . Robot Schematics Acquired . | . . . . Robots Built . | . . . . Authchips . | . . . . Time . | . . . . Total Robot Build Rating . | . . . . Part Schematics Acquired . | . . . . Parts Built . | . . . . Authchips . | . . . . Time . | . . . . Total Part Build Rating . | . . . . Part Studies Acquired 1 | . . . 1 Parts Repaired 2 | . . . 2 Time 88 | . . . 88 Parts Recycled . | . . . . Recycled Matter . | . . . . Retrieved Matter . | . . . . Retrieved Components . | . . . . Parts Scanalyzed . | . . . . Part Schematics Acquired . | . . . . Parts Damaged . | . . . . Bothacking | -11 -10 -10 -9 ------------ Run | Yrd Mat Min Mat Used RIF Installer . | . . . . Robots Hacked . | . . . . Non-combat . | . . . . Combat . | . . . . Robot Hacks Applied . | . . . . Relay Couplers Released . | . . . . Fabnet Peak Effective % . | . . . . Robots Rewired . | . . . . Allies Hacked . | . . . . Hacks Repelled . | . . . . Allies | -11 -10 -10 -9 -------- Run | Yrd Mat Min Mat Total Allies . | . . . . Largest Group . | . . . . Highest-Rated Group . | . . . . Highest-Rated Ally . | . . . . Total Orders . | . . . . Ally Attacks . | . . . . Total Damage . | . . . . Kills . | . . . . Allies Corrupted . | . . . . Allies Melted . | . . . . Intel | -11 -10 -10 -9 ------- Run | Yrd Mat Min Mat Active Infowar (turns) 1333 | . 815 512 6 Sensors 1327 | . 815 512 . Terrain 6 | . . . 6 Robot Analysis Total . | . . . . Derelict Logs Recovered 1 | . . 1 . Drone Launches . | . . . . Drone Recoveries . | . . . . Exploration | -11 -10 -10 -9 ------------- Run | Yrd Mat Min Mat Turns Passed 3883 | 55 861 1265 1702 Spaces Moved 2333 | 40 573 758 962 Core 8 | 8 . . . Treads . | . . . . Legs 1394 | 32 573 758 31 Wheels 931 | . . . 931 Hover . | . . . . Flight . | . . . . Fastest Speed 50 | 50 120 120 80 Average Speed 122 | 111 120 154 99 Slowest Speed 190 | 120 120 190 190 Overloaded Moves . | . . . . Propulsion Burnouts . | . . . . Robots Hopped . | . . . . Potential Cave-ins . | . . . . Cave-ins Triggered . | . . . . Exploration Rate (%) 64 | 3 84 98 72 Regions Visited 3 Branch Regions 1 Pre-discovered Areas . | . . . . Known Exits Taken . | . . . . Unknown Exits Taken 3 | 1 1 1 . Scrap Searched 1 | . . 1 . Spaces Dug 5 | . . 3 2 Terrain Destroyed 109 | . 95 3 11 Melee 5 | . . 3 2 Projectile . | . . . . AOE 104 | . 95 . 9 Terrain Rammed . | . . . . Walls Destroyed . | . . . . Machines Disabled . | . . . . Actions | -11 -10 -10 -9 --------- Run | Yrd Mat Min Mat Total 3060 | 47 663 815 1535 Wait 394 | . 12 20 362 Move 2330 | 39 572 757 962 Hop . | . . . . Pick Up 25 | 2 9 2 12 Fast Attach 11 | 6 1 . 4 Attach 10 | . 3 1 6 Detach 1 | . . . 1 Swap 18 | . 5 1 12 Drop 14 | . 2 1 11 Fire 82 | . 59 4 19 Melee 174 | . . 28 146 Ram . | . . . . Kick 1 | . . 1 . Crush . | . . . . Escape Stasis . | . . . . Rewire . | . . . . Trap . | . . . . Miscellaneous . | . . . . Route ------- -11/Scrapyard -10/Materials (discovered 5 exits: *Mat x3 / [*Min x2]) -10/Mines (discovered 3 exits: *Mat x2 / [*Sub]) -9/Materials (discovered 3 exits: [*Mat x3]) History --------- Turn | Location | Event 13 | -11/Scrapyard | Discovered new exit (range 14) 56 | -11/Scrapyard | Entered Materials 192 | -10/Materials | Discovered new exit (range 7) 203 | -10/Materials | Discovered new exit (range 14) 303 | -10/Materials | Build established: Mutant 506 | -10/Materials | Discovered new exit (range 13) 667 | -10/Materials | Discovered new exit (range 3) 872 | -10/Materials | Discovered new exit (range 16) 917 | -10/Materials | Entered Mines 962 | -10/Mines | Met a Derelict bent on vengeance 1095 | -10/Mines | Learned Materials trap positions 1166 | -10/Mines | Excavation squad dispatched 1166 | -10/Mines | A large section of the Mines collapsed 1245 | -10/Mines | Discovered new exit (range 10) 1294 | -10/Mines | A weapon hastily lodged in a ceiling crevice suddenly fell to the ground 1399 | -10/Mines | Core integrity fell below 50% 1579 | -10/Mines | Discovered new exit (range 6) 1701 | -10/Mines | Found a Scrap Suit stashed away for nefarious purposes 1709 | -10/Mines | Found Scrap Suit 2139 | -10/Mines | Discovered new exit (range 5) 2182 | -10/Mines | Entered Materials 2182 | -9/Materials | Evolved 2 slots: Utility x2 2183 | -9/Materials | Loaded intel: 21 trap records 2659 | -9/Materials | Discovered new exit (range 8) 2707 | -9/Materials | Repaired Mak. Hammer 3084 | -9/Materials | Core integrity fell below 50% 3167 | -9/Materials | Discovered new exit (range 3) 3580 | -9/Materials | Repaired Mak. Hammer 3694 | -9/Materials | Core integrity fell below 20% 3832 | -9/Materials | Lost 3 parts (2u1w) 3836 | -9/Materials | Discovered new exit (range 13) 3884 | -9/Materials | Destroyed by Y-45 Defender with Heavy Assault Rifle Last Messages --------------- 03832_ Connecting with Terminal... 03836_ EXIT=FOUND 03845_ Chain reaction triggered in Ion Engine. 03845_ Ion Engine destroyed. 03845_ Destroyed Ion Engine. 03847_ Material Compactor disabled. 03849_ G-34 Mercenary destroyed. 03854_ K-01 Serf collects debris. 03869_ U-05 Engineer lays Concrete. 03869_ Destroyed Transport Network Coupler. 03869_ A-02 Transporter system corrupted by crushing effect. 03870_ A-02 Transporter system terminally corrupted. 03870_ K-01 Serf collects debris. 03872_ U-05 Engineer builds a Wall. 03873_ Acquired Spread Laser. 03874_ U-05 Engineer lays Concrete. 03875_ Acquired Spread Laser. 03875_ U-05 Engineer builds a Door. 03875_ K-01 Serf collects debris. 03877_ U-05 Engineer builds a Wall. Map ----- +----------------------------------------------------+ | ^ ^^ ## """ !#?????# # #?????? | | %! ## #^??? + # #?????? | | !% = ############??"" # #### #####?????? | | ############ """ ## #### #??###?????????? | | +^ ##%#??# #?????????#????? | | ################## =##%#??# ####### !#????? | | ##?????????????##########+#### !#????? | | T#?????????????# % # #### !#????? | | ##?????????????# = *#[ #???????????? | | #??#######?????# ! """ ""%%+ #???????????? | | #?? T #?????# """ ""|!#### #???????????? | | ]]!#?? #?????# "Y" """ "" #### #???????????? | | !%!#? #?????# """ #??# #???????????? | | ]! #? #????########+#######??# #???????????? | | # #????# ## #########+####????????? | | # """ #????# ## # """ ! #????????? | | + """ #????# ## # "T" """ #????????? | | # """ #????# ## + """ #????????? | | # ####?# ## # """ #????????? | | #########"""### ## # #????????? | | # # ###/### ##############????????? | | # T # #??????????? | | # ! / ! < #??????????? | | + % # [%[ #??????????? | | # "" # ##########+##### ###??????????? | | # """"" ## ##?????#Y@ !#?? #????????????? | | # """"" ## #?????###!= #?????????????????? | | #### """"" ## #???????#!= #?????????????????? | | ???# """ ## #???????# #?????????????????? | | ???# ## #???????# #?????????????????? | | ???# % [ ## #???????# #?????????????????? | | ############# #???????########?????????????????? | | # *%# #???#????????????????????????????? | | # =# #????????????????????????????????? | | # %# #????????#???????????????????????? | | # !=%+% #????????????????????????????????? | | # = !# #????????????????????????????????? | | # # #????????????????????????????????? | | # # #?######?????????????????????????? | | ############# #? !#?????????????????????????? | | ??########### #^""" #?????????????????????????? | | ??# / [# # """^ #?????????????????????????? | | ??# "" # +^"""^ #?????????????????????????? | | ??# "T # #^ ^ #?????????????????????????? | | ??# "" """ +% # #?????????????????????????? | | ??# """ # #?######?????????????????????????? | | ??# """ #####????????????????????????????????? | | ??# #????????????????????????????????????? | | ??# #????????????????????????????????????? | | ??###+#######????????????????????????????????????? | +----------------------------------------------------+ Best States ------------- Heat Dissipation 50 Energy Generation 14 Energy Capacity 250 Matter Stores 300 Matter Capacity 300 Sight Range 16 Robot Scan Range 14 Terrain Scan Range 16 Terrain Scan Density 10 Armor Coverage 225 Evasion (%) 55 Item Schematics ----------------- None Robot Schematics ------------------ None Fabricated ------------ Nothing Repaired ---------- Mak. Hammer | 70% | -9/Materials Mak. Hammer | 59% | -9/Materials Studied --------- Arm. Wheel | -9/Materials | Hacked Alien Tech Used ----------------- None Achievements -------------- None Challenges ------------ None Game ------ Seed BackupSpliceLink Manual? 0 Play Time 00:32:29 Cumulative 48.7 hours Start 2026.04.10 @ 00:31:26 End 2026.04.10 @ 01:00:48 Sessions 1 Manual Loads 0 Difficulty Rogue Special Mode None Game No. 84 Rogue 84 Adventurer 0 Explorer 0 Win Type - Total 0 Types 0/0/0/0/0/0/0/0/0/0 Lore% 20 Gallery% 25 Achievement% 21 Wizard Run 0 Options --------- Layout 0 ASCII 0 Keyboard 0 Movement Mouse Keybinds 0 Fullscreen 1 Font 24/Smallcaps Map View 38x25 Zoom Use 100% Tactical HUD 1 Map Filters NONE Filters NONE Steam 1 RUN: af90b89d-e67b-4b3f-be4a-1c4aa7616c83